Cogmind - Beta 16.1 @@@ ROGUE MODE // 2026.03.07 @ 14:46:56 Player: JuustuToug Result: Smashed by cave-in Performance ------------- Evolutions (0) 0 Regions Visited (2) 400 Robots Destroyed (27) 135 Value Destroyed (487) 487 Prototype IDs (3) 60 Alien Tech Used (0) 0 Bonus (0) 0 TOTAL SCORE: 1082 Bonus ------- None Cogmind --------- Core Integrity 0/250 Matter 250/300 Energy 250/250 System Corruption 0% Temperature Cool (0) Movement Rolling (145) Ox3 Location -10/Mines Parts ------- > --- POWER (1) -------- Ion Engine > --- PROPULSION (2) --- Light Treads Compact Wheel > --- UTILITY (2) ------ Improved Heat Sink High-capacity Storage Unit > --- WEAPON (2) ------- Particle Cannon Particle Cannon > --- INVENTORY (20) --- Light Ion Engine Light Treads Light Treads Light Treads Light Treads Heat Sink Improved Heat Sink Signal Interpreter Improved Terrain Scanner Seismic Detector Beam Cannon Beam Cannon Particle Cannon Light Assault Rifle Light Assault Rifle Plasma Cutter Peak State ------------ > --- POWER ------------ Ion Engine > --- PROPULSION ------- Light Treads Compact Wheel > --- UTILITY ---------- Improved Heat Sink High-capacity Storage Unit > --- WEAPON ----------- Particle Cannon Particle Cannon > --- INVENTORY -------- Light Ion Engine Light Treads Light Treads Light Treads Light Treads Heat Sink Improved Heat Sink Signal Interpreter Improved Terrain Scanner Seismic Detector Beam Cannon Beam Cannon Particle Cannon Light Assault Rifle Light Assault Rifle Plasma Cutter [Rating: 13] Favorites ----------- Power Light Ion Engine Engine Light Ion Engine Propulsion Light Treads Treads Light Treads Wheel Compact Wheel Utility Seismic Detector Device Seismic Detector Storage High-capacity Storage Unit Weapon Assault Rifle Energy Cannon Particle Cannon Ballistic Gun Assault Rifle Special Weapon Plasma Cutter Build | -11 -10 -10 ------- Run | Yrd Mat Min Slots Evolved . | . . . Power . | . . . Propulsion . | . . . Utility . | . . . Weapon . | . . . Parts Attached 18 | 7 5 6 Power 2 | 1 . 1 Engine 2 | 1 . 1 Core . | . . . Reactor . | . . . Propulsion 5 | 2 . 3 Treads 4 | 2 . 2 Leg . | . . . Wheel 1 | . . 1 Hover . | . . . Flight . | . . . Utility 5 | 2 2 1 Device 2 | 1 . 1 Storage 3 | 1 2 . Processor . | . . . Hackware . | . . . Protection . | . . . Artifact . | . . . Weapon 6 | 2 3 1 Energy Gun . | . . . Energy Cannon 3 | . 2 1 Ballistic Gun 2 | 2 . . Ballistic Cannon . | . . . Launcher . | . . . Special Weapon 1 | . 1 . Impact Weapon . | . . . Slashing Weapon . | . . . Piercing Weapon . | . . . Special Melee Weapon . | . . . Unidentified Prototypes . | . . . Parts Lost 4 | . . 4 Power 1 | . . 1 Propulsion 1 | . . 1 Utility 1 | . . 1 Weapon 1 | . . 1 Highest Loss Streak 4 | . . 4 To Critical Strikes . | . . . Average Backups 12 | 1 11 18 Power 1 | . 1 1 Propulsion 3 | . 3 4 Utility 3 | . 3 5 Weapon 3 | . 3 5 Tool/Special . | . . . Unused Backups 15 | 1 2 12 Power 1 | . . 1 Propulsion 3 | 1 . 2 Utility 5 | . . 5 Weapon 6 | . 2 4 Tool/Special . | . . . Average Slot Usage (%) 99 | . 100 98 Engine 13 | . 14 13 Treads 26 | . 28 20 Wheel 1 | . . 7 Device 13 | . 14 12 Storage 14 | . 14 14 Energy Cannon 14 | . 13 18 Ballistic Gun 13 | . 14 9 Peak Build Rating 13 | 7 11 13 Average Rating 8 | 6 8 10 On Entrance 5 | . 7 10 Avg Prop Armor Cover (%) 12 | . . 12 Naked Turns . | . . . Heaviest Build 54 | 12 50 54 Greatest Support 40 | 40 40 40 Greatest Overweight (x) 3 | . 1 3 Average Overweight (x) . | . . 2 Largest Inventory Capacity 20 | 8 20 20 Average Capacity 17 | 7 18 20 Most Carried 20 | 4 20 20 Average Carried 12 | 1 11 18 Final Capacity 20 | 8 20 20 Final Carried 19 | 4 19 16 Class Distribution -------------------- 100% | Mutant Dominant Class ---------------- Mutant | -10/Materials Mutant | -10/Mines Resources | -11 -10 -10 ----------- Run | Yrd Mat Min Matter Collected 607 | 341 187 79 Remotely . | . . . Salvage Created 935 | 160 479 296 Parts 64 | 17 30 17 Haulers Intercepted 2 | . 2 . Recyclers Shooed . | . . . Parts Field Recycled . | . . . Retrieved Matter . | . . . Parts Self-Destructed . | . . . Prevented . | . . . Parts Restored . | . . . Kills | -11 -10 -10 ------- Run | Yrd Mat Min Combat Hostiles Destroyed 14 | . 7 7 Guns 5 | . 4 1 Cannons 9 | . 3 6 Classes Destroyed 7 | 1 5 1 Tunneler 7 | 7 . . Hauler 2 | . 2 . Recycler 3 | . 2 1 Watcher 1 | . 1 . Swarmer 6 | . 3 3 Grunt 7 | . 4 3 Demolisher 1 | . . 1 Best Kill Streak 3 | 3 3 3 Combat Bots Only 3 | . 2 3 Max Kills in Single Turn 1 | 1 1 1 Gunslinging . | . . . Exploded . | . . . Melee . | . . . Uniques/NPCs Destroyed . | . . . Combat | -11 -10 -10 -------- Run | Yrd Mat Min Hostile Shots Fired 72 | . 35 37 Missed 21 | . 14 7 Hits 51 | . 21 30 Projectile 51 | . 21 30 AOE 13 | . 1 12 Damage Taken 966 | . 269 697 Core 276 | . 79 197 Absorbed by Shields . | . . . Core Remaining (%) 100 | 100 . . Volleys Fired 74 | 21 38 15 Largest 2 | 2 2 2 Hottest 136 | 40 88 136 Shots Fired 147 | 42 76 29 Gun 93 | 42 38 13 Cannon 54 | . 38 16 Launcher . | . . . Special . | . . . Kinetic 93 | 42 38 13 Thermal 54 | . 38 16 Explosive . | . . . Electromagnetic . | . . . Robot Hit Streak 7 | 5 7 6 Robot Miss Streak 4 | 2 2 4 Penetration Max . | . . . Secondary Targets . | . . . Shots Hit Robots 80 | 23 42 15 Core Hits 41 | 12 18 11 Critical Kills . | . . . Critical Parts Destroyed . | . . . Critical Strikes . | . . . Melee Attacks . | . . . Impact . | . . . Slashing . | . . . Piercing . | . . . Sneak Attacks . | . . . Combat Hostiles . | . . . Follow-up Attacks . | . . . Damage Inflicted 1144 | 243 625 276 Guns 564 | 243 270 51 Cannons 575 | . 350 225 Explosions . | . . . Melee . | . . . Ramming 5 | . 5 . Kinetic 564 | 243 270 51 Thermal 575 | . 350 225 Explosive . | . . . Electromagnetic . | . . . Impact . | . . . Slashing . | . . . Piercing . | . . . Highest Corruption . | . . . Average Corruption . | . . . Corruption Purged . | . . . Corruption Blocked . | . . . Overload Shots . | . . . Overflow Damage 16 | . 16 . Projectiles 16 | . 16 . Explosions . | . . . Melee . | . . . Knockbacks . | . . . Impact . | . . . Kinetic . | . . . Secondary . | . . . Self-Inflicted Damage . | . . . Shots . | . . . Rammed 1 | . 1 . Targets Rammed 1 | . 1 . Kicked . | . . . Crushed . | . . . Highest Temperature 162 | . 162 150 Average Temperature 52 | . 47 65 Received Heat Transfer 198 | . 99 99 Siege Activations . | . . . Martial Activations . | . . . Shielding Activations . | . . . Robots Disrupted . | . . . Combat Hostiles . | . . . Robots Corrupted . | . . . Combat Hostiles . | . . . Parts Fried . | . . . Impact Corruptions . | . . . Robots Melted . | . . . Combat Hostiles . | . . . Parts Melted . | . . . Heat Transferred 1147 | . 740 407 Parts Sabotaged . | . . . Parts Stolen . | . . . Parts Stripped . | . . . Power Chain Reactions . | . . . Alert | -11 -10 -10 ------- Run | Yrd Mat Min Maximum Alert Level . | . . . Low Security (%) 100 | 100 100 100 Level 1 . | . . . Level 2 . | . . . Level 3 . | . . . Level 4 . | . . . Level 5 . | . . . High Security . | . . . Max Security . | . . . Peak Influence 73 | 10 73 70 Initial . | . . . Average 16 | 1 16 22 Influence Increases 546 | 35 311 200 Destroy 0b10 Robot/C 280 | . 140 140 Destroy 0b10 Robot/NC 65 | 35 25 5 Destroy Leader 86 | . 46 40 Successful Hack 39 | . 39 . Select Force Hacks 30 | . 30 . Disable Machine 15 | . 15 . Destroy Structure 1 | . 1 . Lose Combat Pursuer 30 | . 15 15 Influence Decreases 546 | 35 311 200 Time Decay 526 | 35 311 180 Lost Part 20 | . . 20 Squads Dispatched 2 | . 2 . Investigation 1 | . 1 . Extermination . | . . . Reinforcement 1 | . 1 . Assault . | . . . Garrison . | . . . Intercept . | . . . Searches Triggered . | . . . Construction Impeded . | . . . Haulers Reinforced . | . . . Active Scanning Responses . | . . . Cargo Convoy Interrupts . | . . . Stealth | -11 -10 -10 --------- Run | Yrd Mat Min Distress Signals 2 | . 1 1 Communications Jammed . | . . . Distress Signals . | . . . Times Spotted 22 | . 12 10 Peak Tracking Total 3 | . 2 3 Tactical Retreats 2 | . 1 1 Traps | -11 -10 -10 ------- Run | Yrd Mat Min Traps Triggered . | . . . Indirectly . | . . . Trap Hack Attempts . | . . . Triggered . | . . . Disarmed . | . . . Reprogrammed . | . . . Reused . | . . . Traps Extracted . | . . . Installed . | . . . Triggered . | . . . Machines | -11 -10 -10 ---------- Run | Yrd Mat Min Machines Disabled 1 | . 1 . Max in Single Turn 1 | . 1 . Machines Repaired . | . . . Machines Dismantled 1 | . 1 . Machines Sabotaged . | . . . Overloaded Fab Kills . | . . . Hacking | -11 -10 -10 --------- Run | Yrd Mat Min Machines Accessed 8 | . 8 . Terminals 7 | . 7 . Fabricators . | . . . Repair Stations . | . . . Recycling Units 1 | . 1 . Scanalyzers . | . . . Garrison Access . | . . . Total Hacks 25 | . 25 . Successful 14 | . 14 . Failed 11 | . 11 . Catastrophic 1 | . 1 . Database Lockouts . | . . . Manual 17 | . 17 . Terminals 24 | . 24 . Fabricators . | . . . Repair Stations . | . . . Recycling Units 1 | . 1 . Scanalyzers . | . . . Garrison Access . | . . . Terminal Hacks 4 | . 4 . Prototype ID Bank 2 | . 2 . Terminal Index 1 | . 1 . Registered Components 1 | . 1 . Fabricator Hacks . | . . . Repair Station Hacks . | . . . Recycling Unit Hacks . | . . . Scanalyzer . | . . . Garrison Access Hacks . | . . . Unauthorized Hacks 10 | . 10 . Terminals 9 | . 9 . Botnet 3 | . 3 . Operators 1 | . 1 . Skim 5 | . 5 . Fabricators . | . . . Repair Stations . | . . . Recycling Units 1 | . 1 . Tunnel 1 | . 1 . Scanalyzers . | . . . Garrison Access . | . . . Data Cores Recovered . | . . . Used . | . . . Hacking Detections 8 | . 8 . Full Trace Events . | . . . Feedback Events . | . . . Feedback Blocked . | . . . Robot Schematics Acquired . | . . . Robots Built . | . . . Authchips . | . . . Time . | . . . Total Robot Build Rating . | . . . Part Schematics Acquired . | . . . Parts Built . | . . . Authchips . | . . . Time . | . . . Total Part Build Rating . | . . . Part Studies Acquired . | . . . Parts Repaired . | . . . Time . | . . . Parts Recycled . | . . . Recycled Matter . | . . . Retrieved Matter . | . . . Retrieved Components . | . . . Parts Scanalyzed . | . . . Part Schematics Acquired . | . . . Parts Damaged . | . . . Bothacking | -11 -10 -10 ------------ Run | Yrd Mat Min Used RIF Installer . | . . . Robots Hacked . | . . . Non-combat . | . . . Combat . | . . . Robot Hacks Applied . | . . . Relay Couplers Released . | . . . Fabnet Peak Effective % . | . . . Robots Rewired . | . . . Allies Hacked . | . . . Hacks Repelled . | . . . Allies | -11 -10 -10 -------- Run | Yrd Mat Min Total Allies . | . . . Largest Group . | . . . Highest-Rated Group . | . . . Highest-Rated Ally . | . . . Total Orders . | . . . Ally Attacks . | . . . Total Damage . | . . . Kills . | . . . Allies Corrupted . | . . . Allies Melted . | . . . Intel | -11 -10 -10 ------- Run | Yrd Mat Min Active Infowar (turns) 2358 | 136 1851 371 Seismic 2358 | 136 1851 371 Robot Analysis Total . | . . . Derelict Logs Recovered 1 | . . 1 Drone Launches . | . . . Drone Recoveries . | . . . Exploration | -11 -10 -10 ------------- Run | Yrd Mat Min Turns Passed 2638 | 227 1851 560 Spaces Moved 905 | 98 611 196 Core 3 | 3 . . Treads 803 | 95 611 97 Legs . | . . . Wheels 99 | . . 99 Hover . | . . . Flight . | . . . Fastest Speed 50 | 50 160 145 Average Speed 207 | 156 221 192 Slowest Speed 240 | 160 240 240 Overloaded Moves . | . . . Propulsion Burnouts . | . . . Robots Hopped . | . . . Potential Cave-ins 4 | . . 4 Cave-ins Triggered 1 | . . 1 Exploration Rate (%) 41 | 4 86 33 Regions Visited 2 Branch Regions 1 Pre-discovered Areas 1 | . 1 . Known Exits Taken . | . . . Unknown Exits Taken 2 | 1 1 . Scrap Searched . | . . . Spaces Dug . | . . . Terrain Destroyed . | . . . Melee . | . . . Projectile . | . . . AOE . | . . . Terrain Rammed . | . . . Walls Destroyed . | . . . Machines Disabled . | . . . Actions | -11 -10 -10 --------- Run | Yrd Mat Min Total 1506 | 131 1027 348 Wait 471 | . 346 125 Move 903 | 97 610 196 Hop . | . . . Pick Up 23 | 5 17 1 Fast Attach 7 | 7 . . Attach 4 | . . 4 Detach . | . . . Swap 13 | . 6 7 Drop 6 | 1 5 . Fire 74 | 21 38 15 Melee . | . . . Ram . | . . . Kick . | . . . Crush 1 | . 1 . Escape Stasis . | . . . Rewire . | . . . Trap . | . . . Miscellaneous 4 | . 4 . Route ------- -11/Scrapyard -10/Materials (discovered 5 exits: *Mat x3 / [*Min] / *Sub) -10/Mines (discovered 3 exits: Mat / *Exi / Sub) History --------- Turn | Location | Event 48 | -11/Scrapyard | Discovered new exit (range 15) 228 | -11/Scrapyard | Entered Materials 229 | -10/Materials | Met a group of wandering Federalists 309 | -10/Materials | Build established: Mutant 426 | -10/Materials | Discovered new exit (range 9) 530 | -10/Materials | Discovered new exit (range 15) 859 | -10/Materials | Discovered new exit (range 4) 975 | -10/Materials | Identified exit to Materials 1009 | -10/Materials | Learned Storage stockpile data 1047 | -10/Materials | Learned Storage terminal intel 1052 | -10/Materials | Learned 2 Mines zone layouts 1068 | -10/Materials | Identified exit to Subcaves 1094 | -10/Materials | Learned Storage stockpile data 2079 | -10/Materials | Entered Mines 2081 | -10/Mines | Identified exit to Exiles 2111 | -10/Mines | Deemed a non-threat by the Exiles lab entrance 2344 | -10/Mines | Core integrity fell below 50% 2384 | -10/Mines | Learned Materials machine intel 2416 | -10/Mines | Assembled infested the area 2468 | -10/Mines | Core integrity fell below 20% 2497 | -10/Mines | Lost 4 parts (1p1n1u1w) 2640 | -10/Mines | Crushed by falling debris 2640 | -10/Mines | Smashed by cave-in Last Messages --------------- 02384_ Acquired derelict log, extracted data. Data stored: Materials machine intel. 02416_ ALERT: Infestation in the mines, dispatching Demolisher response squad. 02460_ C-45 Heavy ARC bursts open, deploying its payload. 02460_ D-53 Grenadier unfolds itself. 02460_ Lgt. Ion Engine destroyed. 02463_ The unstable cave ceiling collapses. 02465_ Lgt. Treads destroyed. 02466_ Seismic Detector destroyed. 02466_ Assault Rifle destroyed. 02467_ The unstable cave ceiling collapses. 02471_ D-53 Grenadier destroyed. 02474_ The unstable cave ceiling collapses. 02517_ K-01 Serf destroyed. 02522_ The unstable cave ceiling collapses. 02543_ T-07 Excavator destroyed. 02547_ The unstable cave ceiling collapses. 02640_ Crushed by falling debris. Map ----- +----------------------------------------------------+ | | | | | | | ????????????????????????????????????????????? | | ????????????????????????????????????????????? | | ????????????????????????????????????????????? | | ????????????????????????????????????????????? | | ????????????????????????????????????????????? | | ????????????????????????????????????????????? | | ????????????????????????????????????????????? | | ????????????????????????????????????????????? | | ????????????????????????????????????????????? | | ????????????????????????????????????????????? | | ????????????????????????????????????????????? | | ????????????????????????????????????????????? | | ????????????????????????????????????????????? | | ????????????????????????????????????????????? | | ????????????????????????????????????????????? | | ???????????????????????